bitfinex-derivatives/quotes_BTCF0:USTF0_20250729
["timestamp","ask_amount","ask_price","bid_price","bid_amount"]
[1753752970201,0.8565155,118260.0,118250.0,0.11551006]
[1753752970500,0.8565155,118260.0,118250.0,0.09599006]
[1753752970799,0.8565155,118260.0,118250.0,0.02434]
[1753752971398,0.8565155,118260.0,118250.0,0.004]
[1753752972102,1.068983,118260.0,118250.0,0.004]
[1753752972890,0.233199,118240.0,118230.0,0.48808465]
[1753752973097,1.541384,118240.0,118230.0,0.41243459]
[1753752973404,1.540384,118240.0,118230.0,0.3939683]
[1753752974502,1.540384,118240.0,118230.0,0.3992683]
[1753752976203,1.540384,118240.0,118230.0,0.4042683]
[1753752976603,1.540384,118240.0,118230.0,0.3448783]
[1753752976799,1.540384,118240.0,118230.0,0.3728683]
[1753752977304,1.540384,118240.0,118230.0,0.4032083]
[1753752977992,0.862544,118240.0,118230.0,0.4032083]
[1753752978201,1.3280765,118240.0,118230.0,0.4032083]
[1753752980400,1.3280765,118240.0,118230.0,0.6156758]
[1753752983006,0.6500765,118240.0,118230.0,0.6156758]
[1753752983206,1.3278365,118240.0,118230.0,0.6156758]
[1753752983409,1.1596075,118240.0,118230.0,0.6156758]
[1753752983611,0.82605,118240.0,118230.0,0.6156758]
[1753752984408,0.87624,118240.0,118230.0,0.6156758]
[1753752986202,0.3696727,118260.0,118250.0,0.2666147]
[1753752986505,1.3797002,118260.0,118250.0,0.4790822]
[1753752987708,1.3797002,118260.0,118250.0,0.4800822]
[1753752987899,1.1682875,118260.0,118250.0,0.4800822]
[1753752988099,1.1682875,118260.0,118250.0,0.4820822]
[1753752988304,1.3374079,118260.0,118250.0,0.4820822]
[1753752988707,1.1682875,118260.0,118250.0,0.4820822]
[1753752988911,1.1249404,118260.0,118250.0,0.55301654]
[1753752989411,0.4473804,118260.0,118250.0,0.55301654]
[1753752989606,1.1250604,118260.0,118250.0,0.55301654]
[1753752989911,1.1250604,118260.0,118250.0,0.2696147]
[1753752991209,0.4473804,118260.0,118250.0,0.2696147]
[1753752991505,1.1249004,118260.0,118250.0,0.2696147]
[1753752994111,1.40830224,118260.0,118250.0,0.2696147]
[1753752995312,0.73078224,118260.0,118250.0,0.2696147]
[1753752995510,1.40810224,118260.0,118250.0,0.2696147]
[1753752996818,1.1247004,118260.0,118250.0,0.2696147]
[1753752999311,0.4473804,118260.0,118250.0,0.2696147]
[1753752999512,1.1241404,118260.0,118250.0,0.2696147]
[1753753001116,1.1241404,118260.0,118250.0,0.2392747]
[1753753006016,0.4473804,118260.0,118250.0,0.2392747]
[1753753006219,1.1237004,118260.0,118250.0,0.2392747]
[1753753008917,0.4473804,118260.0,118250.0,0.2392747]
[1753753009117,1.1235004,118260.0,118250.0,0.2392747]
[1753753010821,1.33606639,118260.0,118250.0,0.2392747]
[1753753011021,1.33606639,118260.0,118250.0,0.45184069]
[1753753011833,0.4473804,118260.0,118250.0,0.40433069]
[1753753012031,0.098,118260.0,118250.0,0.69538668]
[1753753012230,1.0004961,118270.0,118260.0,0.2673504]
[1753753012428,1.0504961,118270.0,118260.0,0.69248238]
[1753753012934,1.26306209,118270.0,118260.0,0.69248238]
[1753753013233,1.26334209,118270.0,118260.0,0.70083122]
[1753753014237,1.26318209,118270.0,118260.0,0.70183122]
[1753753015237,1.26318209,118270.0,118260.0,0.41077523]
[1753753015432,1.26318209,118270.0,118260.0,0.44057523]
[1753753015832,1.26318209,118270.0,118260.0,0.46012523]
[1753753017640,1.26318209,118270.0,118260.0,0.45177639]
[1753753019834,1.26318209,118270.0,118260.0,0.52742645]
[1753753020230,1.0506161,118270.0,118260.0,0.52742645]
[1753753020430,1.0506161,118270.0,118260.0,0.45177639]
[1753753020641,1.26318209,118270.0,118260.0,0.45177639]
[1753753020842,1.26318209,118270.0,118260.0,0.40242639]
[1753753021240,1.26318209,118270.0,118260.0,0.43222639]
[1753753022044,1.0506161,118270.0,118260.0,0.43222639]
[1753753022243,1.26318209,118270.0,118260.0,0.45177639]
[1753753024245,0.3746961,118270.0,118260.0,0.66434238]
[1753753024448,0.88139,118270.0,118260.0,0.69348238]
[1753753024644,1.0504961,118270.0,118260.0,0.69348238]
[1753753028951,0.88139,118270.0,118260.0,0.69348238]
[1753753029143,0.88131,118270.0,118260.0,0.69348238]
[1753753031049,1.26298209,118270.0,118260.0,0.55656645]
[1753753031253,1.26298209,118270.0,118260.0,0.52742645]
[1753753032048,1.26290209,118270.0,118260.0,0.52742645]
[1753753033452,0.88123,118270.0,118260.0,0.55469645]
[1753753033653,1.26290209,118270.0,118260.0,0.76726244]
[1753753033853,1.0503361,118270.0,118260.0,0.76726244]
[1753753034058,1.26290209,118270.0,118260.0,0.76726244]
[1753753034355,1.26290209,118270.0,118260.0,0.69161238]
[1753753034555,1.26290209,118270.0,118260.0,0.47904639]
[1753753034855,1.26342209,118270.0,118260.0,0.69161238]
[1753753035360,1.26342209,118270.0,118260.0,0.47904639]
[1753753036257,1.26342209,118270.0,118260.0,0.45177639]
[1753753037760,1.26330209,118270.0,118260.0,0.45177639]
[1753753044065,1.26330209,118270.0,118260.0,0.69161238]
[1753753047167,1.26330209,118270.0,118260.0,0.2664804]
[1753753047361,1.26330209,118270.0,118260.0,0.47904639]
[1753753048165,1.26330209,118270.0,118260.0,0.45177639]
[1753753051168,1.26330209,118270.0,118260.0,0.5275865]
[1753753051567,1.26330209,118270.0,118260.0,0.45177639]
[1753753052168,1.0507361,118270.0,118260.0,0.47904639]
[1753753052367,1.26330209,118270.0,118260.0,0.47904639]
[1753753056275,1.0507361,118270.0,118260.0,0.47904639]
[1753753056465,1.26330209,118270.0,118260.0,0.47904639]
[1753753057773,1.26330209,118270.0,118260.0,0.69161238]
[1753753059172,0.87812,118270.0,118260.0,0.76742211]
[1753753059373,1.0472262,118270.0,118260.0,0.76742211]
[1753753059872,1.0472262,118270.0,118260.0,0.69161238]
[1753753060073,0.3250662,118270.0,118260.0,0.69161238]
[1753753060275,0.82785,118270.0,118260.0,0.69161238]
[1753753060773,0.82785,118270.0,118260.0,0.79714813]
[1753753061170,0.05391,118280.0,118270.0,0.0478]
[1753753061378,1.0550318,118280.0,118270.0,0.81445118]
[1753753061676,0.25719,118280.0,118270.0,0.91998693]
[1753753061873,0.25719,118280.0,118270.0,0.81445118]
[1753753062772,0.14274,118280.0,118270.0,1.48977118]
[1753753063079,0.14274,118280.0,118270.0,1.59530693]
[1753753063080,0.05491,118280.0,118270.0,1.59530693]
[1753753063472,0.05491,118280.0,118270.0,1.56547856]
[1753753063874,0.05491,118280.0,118270.0,1.82837856]
[1753753064480,1.14147639,118310.0,118270.0,1.82837856]
[1753753064481,0.14777,118300.0,118290.0,0.2627676]
[1753753064683,0.14777,118300.0,118290.0,1.36329958]
[1753753065877,0.03938,118310.0,118300.0,0.03872]
[1753753066079,0.25777,118310.0,118300.0,0.89038366]
[1753753066782,0.21102,118310.0,118300.0,0.89038366]
[1753753067577,0.21402,118310.0,118300.0,0.81467628]
[1753753067979,0.02408,118310.0,118300.0,0.81467628]
[1753753068179,0.08572,118310.0,118300.0,0.82320066]
[1753753068887,0.08572,118310.0,118300.0,0.68115789]
[1753753069186,0.003,118310.0,118300.0,0.68115789]
[1753753069390,0.0362,118310.0,118300.0,0.68115789]
[1753753070088,0.0352,118310.0,118300.0,0.68115789]
[1753753070385,0.0352,118310.0,118300.0,0.75686527]
[1753753070386,0.0342,118310.0,118300.0,0.75686527]
[1753753071084,0.0332,118310.0,118300.0,0.75686527]
[1753753071781,0.08372,118310.0,118300.0,0.75686527]
[1753753071981,0.4478189,118310.0,118300.0,0.73030527]
[1753753072181,0.73090811,118310.0,118300.0,0.30083378]
[1753753072584,0.4478189,118310.0,118300.0,0.3207194]
[1753753072791,0.4478189,118310.0,118300.0,0.32933695]
[1753753072981,0.73090811,118310.0,118300.0,0.2729994]
[1753753073188,0.73090811,118310.0,118300.0,0.1690632]
[1753753075394,0.4478189,118310.0,118300.0,0.1884732]
[1753753075690,0.4478189,118310.0,118300.0,0.2168832]
[1753753076788,0.4478189,118310.0,118300.0,0.2077832]
[1753753076993,0.4478189,118310.0,118300.0,0.54584241]
[1753753077893,0.14877,118310.0,118300.0,0.54584241]
[1753753078791,0.001,118310.0,118300.0,1.48454241]
[1753753081791,0.05428,118310.0,118300.0,1.48454241]
[1753753081990,0.08372,118310.0,118300.0,1.48454241]
[1753753083395,0.437819,118310.0,118300.0,1.1749732]
[1753753083595,0.437819,118310.0,118300.0,0.4990932]
[1753753084096,0.437819,118310.0,118300.0,0.5256532]
[1753753085694,0.437819,118310.0,118300.0,0.4990932]
[1753753086796,0.437819,118310.0,118300.0,0.4706832]
[1753753086797,0.72090821,118310.0,118300.0,0.4706832]
[1753753086996,0.72090821,118310.0,118300.0,0.4319632]
[1753753087899,0.72090821,118310.0,118300.0,0.2168832]
[1753753088397,0.437819,118310.0,118300.0,0.2168832]
[1753753093803,0.437819,118310.0,118300.0,0.1690632]
[1753753095107,0.437819,118310.0,118300.0,0.2168932]
[1753753097805,0.437819,118310.0,118300.0,0.2351732]
[1753753099607,0.44630678,118310.0,118300.0,0.2351732]
[1753753100704,0.44630678,118310.0,118300.0,0.1690632]
[1753753100908,0.3155432,118300.0,118290.0,0.3619803]
[1753753101105,1.1206232,118300.0,118290.0,0.3619803]
[1753753101315,1.1206232,118300.0,118290.0,0.3902903]
[1753753101609,1.6206232,118300.0,118290.0,0.3902903]
[1753753102210,1.6206232,118300.0,118290.0,0.3912903]
[1753753105207,1.6206232,118300.0,118290.0,0.67437951]
[1753753106412,1.29493,118300.0,118290.0,0.67437951]
[1753753106911,1.32144,118300.0,118290.0,0.67437951]
[1753753107314,0.82144,118300.0,118290.0,0.67437951]
[1753753108220,0.14648,118300.0,118290.0,0.67437951]
[1753753108516,0.26648,118300.0,118290.0,0.67437951]
[1753753109618,0.14648,118300.0,118290.0,0.67437951]
[1753753110120,0.25648,118300.0,118290.0,0.67437951]
[1753753111718,0.4255432,118300.0,118290.0,0.67437951]
[1753753112220,0.4255432,118300.0,118290.0,0.75008689]
[1753753115021,0.3155432,118300.0,118290.0,0.75008689]
[1753753115229,0.4355432,118300.0,118290.0,0.75008689]
[1753753122923,0.4355432,118300.0,118290.0,0.42472918]
[1753753123130,0.71863241,118300.0,118290.0,0.35415068]
[1753753123323,0.71863241,118300.0,118290.0,0.24578488]
[1753753123518,0.71863241,118300.0,118290.0,0.1700775]
[1753753123919,0.71863241,118300.0,118290.0,0.001]
[1753753124334,1.21863241,118300.0,118290.0,0.001]
[1753753124722,1.21863241,118300.0,118290.0,0.07670738]
[1753753125832,1.21863241,118300.0,118290.0,0.001]
[1753753127329,1.21863241,118300.0,118280.0,0.24478998]
[1753753127330,0.3090418,118280.0,118270.0,0.3597315]
[1753753127530,1.38689101,118280.0,118270.0,0.3597315]
[1753753128030,1.1038018,118280.0,118270.0,0.3873515]
[1753753129338,1.17294012,118280.0,118270.0,0.3873515]
[1753753129530,1.17294012,118280.0,118270.0,0.3893515]
[1753753130231,1.17294012,118280.0,118270.0,0.3923515]
[1753753132036,1.18119184,118280.0,118270.0,0.3923515]
[1753753134629,1.18119184,118280.0,118270.0,0.3647315]
[1753753137441,1.18119184,118280.0,118270.0,0.44043888]
[1753753138543,1.18119184,118280.0,118270.0,0.3647315]
[1753753139846,1.18119184,118280.0,118270.0,0.3597315]
[1753753140142,1.18119184,118280.0,118270.0,0.3627315]
[1753753140342,1.18119184,118280.0,118270.0,0.3903515]
[1753753141649,1.17294012,118280.0,118270.0,0.3903515]
[1753753141946,1.17294012,118280.0,118270.0,0.67344071]
[1753753144545,0.49818012,118280.0,118270.0,0.67344071]
[1753753144752,0.06813832,118280.0,118270.0,1.63136992]
[1753753144947,0.77169,118300.0,118290.0,0.2063776]
[1753753145155,1.0938533,118300.0,118290.0,0.54359681]
[1753753145355,0.4190133,118300.0,118290.0,0.54359681]
[1753753145554,1.0938533,118300.0,118290.0,0.54359681]
[1753753146248,1.0948533,118300.0,118290.0,0.54359681]
[1753753147348,1.0958533,118300.0,118290.0,0.54359681]
[1753753147954,1.16328812,118300.0,118290.0,0.54359681]
[1753753150757,1.16328812,118300.0,118290.0,0.55191388]
[1753753151455,1.16328812,118300.0,118290.0,0.54359681]
[1753753153357,1.16328812,118300.0,118290.0,0.2328876]
[1753753155054,1.44637733,118300.0,118290.0,0.2328876]
[1753753155358,1.16328812,118300.0,118290.0,0.2328876]
[1753753155559,1.44637733,118300.0,118290.0,0.1690776]
[1753753155953,0.2864674,118290.0,118280.0,0.32933048]
[1753753156159,0.70642661,118290.0,118280.0,0.2536231]
[1753753156657,1.20642661,118290.0,118280.0,0.2536231]
[1753753157652,1.29097061,118290.0,118280.0,0.1690917]
[1753753157848,1.33324301,118290.0,118280.0,0.1690917]
[1753753175364,1.33324301,118290.0,118270.0,0.1529792]
[1753753175570,1.27120091,118280.0,118270.0,0.2536462]
[1753753175771,1.38120091,118280.0,118270.0,0.2536462]
[1753753175968,1.38120091,118280.0,118270.0,0.2722662]
[1753753176166,1.38120091,118280.0,118270.0,0.2984162]
[1753753176975,1.0981117,118280.0,118270.0,0.2994162]
[1753753177175,1.0981117,118280.0,118270.0,0.3014162]
[1753753178375,1.0981117,118280.0,118270.0,0.3195662]
[1753753178674,1.10665879,118280.0,118270.0,0.3195662]
[1753753178869,1.10665879,118280.0,118270.0,0.3185662]
[1753753179075,1.10665879,118280.0,118270.0,0.3195662]
[1753753180374,1.10665879,118280.0,118270.0,0.39527358]
[1753753186578,1.67283721,118280.0,118270.0,0.003]
[1753753186784,1.74448564,118280.0,118270.0,0.003]
[1753753186972,1.53187669,118280.0,118270.0,0.003]
[1753753187372,2.03187669,118280.0,118270.0,0.003]
[1753753187978,2.03187669,118280.0,118270.0,0.1721059]
[1753753188979,1.89003636,118280.0,118270.0,0.003]
[1753753189472,0.3105062,118270.0,118260.0,0.07570738]
[1753753189677,0.2260605,118260.0,118250.0,0.34687678]
[1753753189873,1.38225807,118260.0,118250.0,0.34687678]
[1753753190279,1.38225807,118260.0,118250.0,0.13546738]
[1753753190573,0.2556547,118250.0,118240.0,0.38917738]
[1753753190777,0.4205347,118250.0,118240.0,0.41598738]
[1753753191281,0.4205347,118250.0,118240.0,0.38917738]
[1753753192078,0.4185347,118250.0,118240.0,0.41598738]
[1753753192284,0.4185347,118250.0,118240.0,0.37370108]
[1753753192578,0.70191227,118250.0,118240.0,0.37370108]
[1753753193174,0.4185347,118250.0,118240.0,0.37370108]
[1753753193380,0.4185347,118250.0,118240.0,0.2979937]
[1753753193677,0.4175347,118250.0,118240.0,0.2979937]
[1753753194574,0.4175347,118250.0,118240.0,0.2989937]
[1753753195174,0.4175347,118250.0,118240.0,0.58237127]
[1753753195377,0.2514,118250.0,118240.0,0.58237127]
[1753753195681,0.2514,118250.0,118240.0,0.2989937]
[1753753195981,0.2514,118250.0,118240.0,0.3009937]
[1753753197282,0.2514,118250.0,118240.0,0.37670108]
[1753753197475,0.4205348,118250.0,118240.0,0.37670108]
[1753753199181,0.4205348,118250.0,118240.0,0.3009937]
[1753753199679,0.42912015,118250.0,118240.0,0.3009937]
[1753753205584,0.2514,118250.0,118240.0,0.3009937]
[1753753206085,0.4205352,118250.0,118240.0,0.58437127]
[1753753206284,0.4205352,118250.0,118240.0,0.3009937]
[1753753206985,0.42883841,118250.0,118240.0,0.3009937]
[1753753207385,0.71221598,118250.0,118240.0,0.3009937]
[1753753207985,0.70391277,118250.0,118240.0,0.3009937]
[1753753208285,0.2514,118250.0,118240.0,0.58437127]
[1753753208486,0.8854,118250.0,118240.0,0.58437127]
[1753753208886,0.11,118250.0,118240.0,0.58437127]
[1753753209088,0.7886,118250.0,118240.0,0.58437127]
[1753753209584,0.82211,118250.0,118240.0,0.58437127]
[1753753210186,0.84348,118250.0,118240.0,0.58437127]
[1753753210788,0.86832,118250.0,118240.0,0.58437127]
[1753753211086,0.75832,118250.0,118240.0,0.58437127]
[1753753211290,0.73348,118250.0,118240.0,0.58437127]
[1753753211689,0.69997,118250.0,118240.0,0.58437127]
[1753753212390,0.73348,118250.0,118240.0,0.58437127]
[1753753212587,0.73348,118250.0,118240.0,0.66007865]
[1753753212987,0.05488,118250.0,118240.0,0.58437127]
[1753753213291,0.05488,118250.0,118240.0,0.66007865]
[1753753215595,0.07948,118250.0,118240.0,0.66007865]
[1753753216198,0.07948,118250.0,118240.0,0.58437127]
[1753753216499,0.07948,118250.0,118240.0,0.68990702]
[1753753216893,0.07948,118250.0,118240.0,0.83158705]
[1753753217289,0.07948,118250.0,118240.0,0.80178187]
[1753753217784,0.70445,118260.0,118250.0,0.253906]
[1753753217785,0.77629,118260.0,118250.0,0.253906]
[1753753217991,0.88629,118260.0,118250.0,0.4664348]
[1753753218193,0.91207,118260.0,118250.0,0.4664348]
[1753753218392,0.9294,118260.0,118250.0,0.4664348]
[1753753219193,0.92904,118260.0,118250.0,0.4664348]
[1753753220797,0.929,118260.0,118250.0,0.54316537]
[1753753222898,0.929,118260.0,118250.0,0.4674348]
[1753753223892,0.20793,118260.0,118250.0,0.4425248]
[1753753224100,0.03282,118260.0,118250.0,0.6799636]
[1753753224295,0.05545,118260.0,118250.0,0.75569417]
[1753753224903,0.05545,118260.0,118250.0,0.6799636]
[1753753225608,0.01963,118260.0,118250.0,0.69857281]
[1753753225897,0.05545,118270.0,118260.0,0.2538924]
[1753753226198,0.05545,118270.0,118260.0,0.75465228]
[1753753226398,0.08005,118270.0,118260.0,0.75465228]
[1753753226801,0.08005,118270.0,118260.0,0.61286816]
[1753753227301,1.2715743,118300.0,118290.0,0.16908]
[1753753227500,2.0588543,118300.0,118290.0,0.16908]
[1753753227894,2.1162743,118300.0,118290.0,0.21174]
[1753753228098,2.6162743,118300.0,118290.0,0.21174]
[1753753229802,2.6202743,118300.0,118290.0,0.21174]
[1753753230401,2.6262743,118300.0,118290.0,0.21274]
[1753753233407,2.61771482,118300.0,118290.0,0.21274]
[1753753233709,1.94043482,118300.0,118290.0,0.21274]
[1753753234008,2.61739482,118300.0,118290.0,0.51321348]
[1753753235305,2.61739482,118300.0,118290.0,0.22994]
[1753753237104,2.61739482,118300.0,118290.0,0.48818348]
[1753753237309,2.61739482,118300.0,118290.0,0.53812348]
[1753753237611,1.44759482,118300.0,118290.0,0.53812348]
[1753753238111,1.00543482,118300.0,118290.0,0.53812348]
[1753753248819,1.00543482,118300.0,118290.0,0.467253]
[1753753252514,1.00543482,118300.0,118290.0,0.442343]
[1753753252713,1.21783782,118300.0,118290.0,0.442343]
[1753753254824,1.38690482,118300.0,118290.0,0.382483]
[1753753255025,1.38690482,118300.0,118280.0,0.38993761]
[1753753255026,0.3078113,118290.0,118280.0,0.0422705]
[1753753255315,0.3078113,118290.0,118280.0,0.2113608]
[1753753255316,0.6402143,118290.0,118280.0,0.2113608]
[1753753255717,1.1402143,118290.0,118280.0,0.1690903]
[1753753256021,1.3526173,118290.0,118280.0,0.1690903]
[1753753256522,1.1402143,118290.0,118280.0,0.1690903]
[1753753256822,1.21416907,118290.0,118280.0,0.1690903]
[1753753257022,1.21816907,118290.0,118280.0,0.1690903]
[1753753257218,1.21816907,118290.0,118270.0,0.1268319]
[1753753257219,1.34498597,118290.0,118270.0,0.1268319]
[1753753257418,1.34498597,118290.0,118260.0,0.2536835]
[1753753257419,0.2244199,118270.0,118260.0,0.2536835]
[1753753257617,0.71119767,118270.0,118260.0,0.2959637]
[1753753258016,0.71119767,118270.0,118260.0,0.1691242]
[1753753258219,0.71119767,118270.0,118250.0,0.10317301]
[1753753258524,0.4712583,118270.0,118260.0,0.1691241]
[1753753258722,1.1471783,118270.0,118260.0,0.1691241]
[1753753258924,1.1883178,118270.0,118260.0,0.1691241]
[1753753259828,1.97167557,118270.0,118260.0,0.1691241]
[1753753260325,1.97467557,118270.0,118260.0,0.1691241]
[1753753260823,1.97567557,118270.0,118260.0,0.1691241]
[1753753261526,1.98394036,118270.0,118260.0,0.1691241]
[1753753264530,1.94166066,118270.0,118260.0,0.1691241]
[1753753266132,1.93339587,118270.0,118260.0,0.1691241]
[1753753266324,1.89111767,118270.0,118260.0,0.1691241]
[1753753266724,1.72200777,118270.0,118260.0,0.1691241]
[1753753267721,1.72200777,118270.0,118260.0,0.2283141]
[1753753268028,1.89111727,118270.0,118260.0,0.2526341]
[1753753268228,1.89111727,118270.0,118260.0,0.2283141]
[1753753268530,1.89111727,118270.0,118260.0,0.1691241]
[1753753268825,1.89940562,118270.0,118260.0,0.1691241]
[1753753278746,1.82860908,118270.0,118260.0,0.1691241]
[1753753280947,1.82860908,118270.0,118260.0,0.38168533]
[1753753281343,1.82032073,118270.0,118260.0,0.38168533]
[1753753281742,1.82032073,118270.0,118260.0,0.1691241]
[1753753282043,1.82032073,118270.0,118260.0,0.40757533]
[1753753283848,1.82873389,118270.0,118260.0,0.40757533]
[1753753287856,1.82873389,118270.0,118260.0,0.38168533]
[1753753288255,1.82873389,118270.0,118260.0,0.1691241]
[1753753288556,1.82873389,118270.0,118260.0,0.38168533]
[1753753289857,1.82873389,118270.0,118260.0,0.40757533]
[1753753291256,1.82873389,118270.0,118260.0,0.42409533]
[1753753295558,1.82873389,118270.0,118260.0,0.44090533]
[1753753295860,1.82032073,118270.0,118260.0,0.2534741]
[1753753296158,1.65065123,118270.0,118260.0,0.70469656]
[1753753296358,1.81975843,118270.0,118260.0,0.49213533]
[1753753296958,1.31975843,118270.0,118260.0,0.49213533]
[1753753300556,1.31975843,118270.0,118260.0,0.70469656]
[1753753300758,1.31975843,118270.0,118260.0,0.49213533]
[1753753301163,1.1071972,118270.0,118260.0,0.49213533]
[1753753301358,1.31975843,118270.0,118260.0,0.49213533]
[1753753303766,1.31975843,118270.0,118260.0,0.56783761]
[1753753304865,1.31971843,118270.0,118260.0,0.56783761]
[1753753307368,1.31971843,118270.0,118260.0,0.49213533]
[1753753307961,1.31971843,118270.0,118260.0,0.47607533]
[1753753308369,1.31971843,118270.0,118260.0,0.46603533]
[1753753308569,0.3068715,118260.0,118250.0,0.46722804]
[1753753308770,0.62943273,118260.0,118250.0,0.63635094]
[1753753309074,0.62943273,118260.0,118250.0,0.61025094]
[1753753309371,0.62943273,118260.0,118250.0,0.63635094]
[1753753309669,0.24775,118260.0,118250.0,0.63635094]
[1753753310366,0.24875,118260.0,118250.0,0.63635094]
[1753753312272,0.4178715,118260.0,118250.0,0.63635094]
[1753753314069,0.63043273,118260.0,118250.0,0.63635094]
[1753753314369,0.46131123,118260.0,118250.0,0.63635094]
[1753753315166,0.63043273,118260.0,118250.0,0.63635094]
[1753753315469,0.4178715,118260.0,118250.0,0.63635094]
[1753753315874,0.63043273,118260.0,118250.0,0.63635094]
[1753753319067,0.46131123,118260.0,118250.0,0.63635094]
[1753753319666,0.24875,118260.0,118250.0,0.63635094]
[1753753320869,0.24875,118260.0,118250.0,0.71205322]
[1753753321170,0.92399,118260.0,118250.0,0.71205322]
[1753753323663,0.111,118260.0,118250.0,0.71205322]
[1753753323864,0.7862,118260.0,118250.0,0.84891217]
[1753753324064,0.6762,118260.0,118250.0,0.92461445]
[1753753324273,0.001,118260.0,118250.0,0.84891217]
[1753753324470,0.001,118260.0,118250.0,0.95444792]
[1753753325759,0.001,118260.0,118250.0,1.21734792]
[1753753335273,0.001,118260.0,118250.0,1.11181217]
[1753753337375,0.001,118260.0,118250.0,1.21779139]
[1753753340781,0.03548,118260.0,118250.0,1.21779733]
[1753753341082,0.05679,118260.0,118250.0,1.21779733]
[1753753347184,0.05679,118260.0,118250.0,1.19918812]
[1753753349089,0.001,118260.0,118250.0,1.19918812]
[1753753354392,0.001,118260.0,118250.0,1.09320296]
[1753753357290,0.001,118260.0,118250.0,1.19939283]
[1753753361797,0.03548,118260.0,118250.0,1.19939283]
[1753753364598,0.03548,118260.0,118250.0,1.09320296]
[1753753365300,0.001,118260.0,118250.0,1.09320296]
[1753753365500,0.05677,118260.0,118250.0,1.09320296]
[1753753367701,0.05677,118260.0,118250.0,1.19940875]
[1753753368103,0.05677,118260.0,118250.0,1.09320296]
[1753753370295,0.0239,118260.0,118250.0,1.09320296]
[1753753370598,0.001,118260.0,118250.0,1.09320296]
[1753753374210,0.001,118260.0,118250.0,1.19940735]
[1753753377601,0.03387,118260.0,118250.0,1.19940735]
[1753753377807,0.05677,118260.0,118250.0,1.19940735]
[1753753378504,0.001,118260.0,118250.0,1.19940735]
[1753753378802,0.62720203,118260.0,118250.0,0.97816004]
[1753753379002,0.62720203,118260.0,118250.0,0.79607563]
[1753753379604,0.3046408,118260.0,118250.0,0.79607563]
[1753753379808,0.4246408,118260.0,118250.0,0.79607563]
[1753753380210,0.13552,118260.0,118250.0,1.00863686]
[1753753380410,0.0539,118260.0,118250.0,1.00863686]
[1753753380806,0.0239,118260.0,118250.0,1.00863686]
[1753753381209,0.2258906,118260.0,118250.0,1.00863686]
[1753753381409,0.2415606,118260.0,118250.0,1.00863686]
[1753753381608,0.3046406,118260.0,118250.0,1.00863686]
[1753753382009,0.13552,118260.0,118250.0,1.00863686]
[1753753382309,0.24552,118260.0,118250.0,1.00863686]
[1753753383111,0.4146405,118260.0,118250.0,1.00863686]
[1753753383609,0.4146405,118260.0,118250.0,0.74573686]
[1753753384114,0.24552,118260.0,118250.0,0.74573686]
[1753753384610,0.24552,118260.0,118250.0,0.82159642]
[1753753385213,0.13552,118260.0,118250.0,0.82159642]
[1753753385810,0.13552,118260.0,118250.0,0.74573686]
[1753753387310,0.11042,118260.0,118250.0,0.74573686]
[1753753387510,0.11042,118260.0,118250.0,0.85194125]
[1753753387805,0.001,118260.0,118250.0,0.85194125]
[1753753389513,0.001,118260.0,118250.0,1.11484125]
[1753753390220,0.001,118260.0,118250.0,1.00863686]
[1753753390912,0.49129173,118290.0,118280.0,0.2752519]
[1753753390913,0.2827909,118290.0,118280.0,0.2752519]
[1753753391114,0.23942,118290.0,118280.0,0.70037436]
[1753753391307,0.16857,118290.0,118280.0,0.70037436]
[1753753391711,0.23942,118290.0,118280.0,0.70037436]
[1753753391911,0.26452,118290.0,118280.0,0.70037436]
[1753753392215,0.26452,118290.0,118280.0,0.70862053]
[1753753392416,0.4365975,118290.0,118280.0,0.70862053]
[1753753392616,0.26752,118290.0,118280.0,0.70862053]
[1753753392815,0.21981,118290.0,118280.0,0.70862053]
[1753753393017,0.24242,118290.0,118280.0,0.70862053]
[1753753393321,0.26578,118290.0,118280.0,0.70862053]
[1753753393915,0.133,118290.0,118280.0,0.70862053]
[1753753394311,0.16883,118290.0,118280.0,0.70862053]
[1753753394520,0.1921,118290.0,118280.0,0.70862053]
[1753753395031,0.3777276,118290.0,118280.0,0.70862053]
[1753753395230,0.4391476,118290.0,118280.0,0.70862053]
[1753753399535,0.4391476,118290.0,118280.0,0.28349807]
[1753753399728,0.4391476,118290.0,118280.0,0.70862053]
[1753753399923,0.14007,118290.0,118280.0,0.70862053]
[1753753400131,0.11671,118290.0,118280.0,0.70862053]
[1753753400332,0.09496,118290.0,118280.0,0.70862053]
[1753753401139,0.07865,118290.0,118280.0,0.70862053]
[1753753401837,0.0621,118290.0,118280.0,0.70862053]
[1753753404140,0.2311776,118290.0,118280.0,0.70862053]
[1753753404439,0.4157876,118290.0,118280.0,0.70862053]
[1753753404741,0.4391476,118290.0,118280.0,0.70862053]
[1753753405236,0.4361476,118290.0,118280.0,0.70862053]
[1753753405436,0.4381476,118290.0,118280.0,0.70862053]
[1753753406242,0.4361476,118290.0,118280.0,0.70862053]
[1753753406430,0.4391476,118290.0,118280.0,0.70862053]
[1753753410445,0.4391476,118290.0,118280.0,0.70037436]
[1753753410646,0.65170883,118290.0,118280.0,0.70037436]
[1753753410945,0.65170883,118290.0,118280.0,0.70880826]
[1753753411146,0.65170883,118290.0,118280.0,0.49624703]
[1753753412844,0.65170883,118290.0,118280.0,0.48781313]
[1753753413842,0.4391476,118290.0,118280.0,0.48781313]
[1753753414143,0.4191476,118290.0,118280.0,0.70037436]
[1753753415547,0.14007,118290.0,118280.0,0.70866218]
[1753753415845,0.26007,118290.0,118280.0,0.70866218]
[1753753418347,0.4291476,118290.0,118280.0,0.28353972]
[1753753418546,0.4291476,118290.0,118280.0,0.49610095]
[1753753420451,0.4291476,118290.0,118280.0,0.57192291]
[1753753420648,0.4291476,118290.0,118280.0,0.49610095]
[1753753422454,0.14007,118290.0,118280.0,0.57192291]
[1753753422656,0.26007,118290.0,118280.0,0.57192291]
[1753753423053,0.26007,118290.0,118280.0,0.49610095]
[1753753423553,0.4291476,118290.0,118280.0,0.49610095]
[1753753425457,0.4291476,118290.0,118280.0,0.57192291]
[1753753433167,0.3091476,118290.0,118280.0,0.49610095]
[1753753433367,0.4391476,118290.0,118280.0,0.49610095]
[1753753433767,0.4391476,118290.0,118280.0,0.60230534]
[1753753437070,0.4291476,118290.0,118280.0,0.60230534]
[1753753437369,0.4291476,118290.0,118280.0,0.81486657]
[1753753438169,0.4291476,118290.0,118280.0,0.80657875]
[1753753438366,0.64170883,118290.0,118280.0,0.54383752]
[1753753438761,0.85427006,118290.0,118280.0,0.35115168]
[1753753439066,0.85427006,118290.0,118280.0,0.24494729]
[1753753439269,1.14170883,118290.0,118280.0,0.24494729]
[1753753441174,1.15008601,118290.0,118280.0,0.24494729]
[1753753442473,1.15008601,118290.0,118280.0,0.169092]
[1753753452583,1.15008601,118290.0,118270.0,0.0845499]